fUSD/lending_fUSD_20240921
["ID","MTS","AMOUNT","RATE_DAILY","PERIOD"]
[338713003,1726895444111,-151.0,0.000139,2]
[338713005,1726895444120,-151.0,0.000139,2]
[338713007,1726895444129,-151.0,0.000139,2]
[338713010,1726895444139,-253.227394,0.000139,2]
[338713012,1726895444148,-253.227394,0.000139,2]
[338713014,1726895444157,-151.0,0.000139,2]
[338713016,1726895444166,-151.0,0.000139,2]
[338713018,1726895444175,-492.224936,0.000139,2]
[338713019,1726895444184,-492.224936,0.000139,2]
[338713022,1726895444194,-151.0,0.000139,2]
[338713024,1726895444203,-151.0,0.000139,2]
[338713026,1726895444212,-1107.07764,0.000139,2]
[338713028,1726895444222,-1107.07764,0.000139,2]
[338713030,1726895444231,-151.0,0.000139,2]
[338713032,1726895444240,-352.331981,0.000139,2]
[338713034,1726895444254,-395.504256,0.000139,2]
[338713036,1726895444263,-395.504256,0.000139,2]
[338713038,1726895444272,-190.210506,0.000139,2]
[338713039,1726895444282,-190.210506,0.000139,2]
[338713041,1726895444291,-322.519129,0.000139,2]
[338713043,1726895444300,-322.519129,0.000139,2]
[338713045,1726895444309,-310.041091,0.000139,2]
[338713047,1726895444319,-310.041091,0.000139,2]
[338713049,1726895444329,-151.0,0.000139,2]
[338713051,1726895444339,-151.0,0.000139,2]
[338713053,1726895444348,-245.391185,0.000139,2]
[338713055,1726895444357,-245.391185,0.000139,2]
[338713057,1726895444366,-344.161569,0.000139,2]
[338713059,1726895444375,-242.992857,0.000139,2]
[338713061,1726895444385,-242.992857,0.000139,2]
[338713063,1726895444394,-160.35759,0.000139,2]
[338713065,1726895444404,-152.068274,0.000139,2]
[338713067,1726895444413,-642.112054,0.000139,2]
[338713069,1726895444423,-411.478935,0.000139,2]
[338713071,1726895444432,-411.478935,0.000139,2]
[338713073,1726895444441,-642.112054,0.000139,2]
[338713075,1726895444451,-151.0,0.000139,2]
[338713077,1726895444460,-1687.079736,0.000139,2]
[338713079,1726895444469,-1687.079736,0.000139,2]
[338713081,1726895444478,-1365.857207,0.000139,2]
[338713083,1726895444488,-1365.857207,0.000139,2]
[338713085,1726895444497,-1113.632378,0.000139,2]
[338713087,1726895444507,-1113.632378,0.000139,2]
[338713089,1726895444517,-151.0,0.000139,2]
[338713091,1726895444526,-151.0,0.000139,2]
[338713093,1726895444535,-238.664971,0.000139,2]
[338713095,1726895444544,-534.49688,0.000139,2]
[338713096,1726895444553,-238.664971,0.000139,2]
[338713098,1726895444563,-534.49688,0.000139,2]
[338713100,1726895444572,-229345.030249,0.000139,2]
[338713102,1726895444582,-301.942283,0.000139,2]
[338713104,1726895444591,-151.0,0.000139,2]
[338713106,1726895444600,-301.942283,0.000139,2]
[338713108,1726895444610,-151.0,0.000139,2]
[338713110,1726895444619,-777.352751,0.000139,2]
[338713112,1726895444629,-151.0,0.000139,2]
[338713114,1726895444638,-777.352751,0.000139,2]
[338713116,1726895444648,-695.051238,0.000139,2]
[338713118,1726895444657,-695.051238,0.000139,2]
[338713120,1726895444667,-208.930769,0.000139,2]
[338713122,1726895444676,-208.930769,0.000139,2]
[338713124,1726895444686,-151.0,0.000139,2]
[338713126,1726895444695,-151.0,0.000139,2]
[338713128,1726895444705,-151.0,0.000139,2]
[338713130,1726895444714,-500.0,0.00013904,2]
[338713132,1726895444723,-1000.0,0.00013911,2]
[338713134,1726895444732,-1000.0,0.00013928,2]
[338713136,1726895444741,-781.15,0.00013934,7]
[338713137,1726895444751,-781.15,0.00013934,7]
[338713139,1726895444761,-1000.0,0.00013944,2]
[338713141,1726895444771,-1000.0,0.00013959,2]
[338713144,1726895444781,-1000.0,0.00013974,2]
[338713146,1726895444790,-1000.0,0.0001399,2]
[338713148,1726895444799,-2266.0,0.00013999,2]
[338713150,1726895444809,-30000.0,0.00014,5]
[338713152,1726895444818,-279.860398,0.00014,2]
[338713178,1726895445064,-279.860398,0.00014,2]
[338713180,1726895445074,-279.2896,0.00014,2]
[338713182,1726895445084,-279.2896,0.00014,2]
[338713184,1726895445094,-3590.0,0.00014,5]
[338713186,1726895445104,-3000.0,0.00014,3]
[338713188,1726895445113,-2500.0,0.00014,3]
[338713190,1726895445123,-186.748664,0.00014,2]
[338713192,1726895445132,-151.0,0.00014,2]
[338713194,1726895445142,-151.0,0.00014,2]
[338713195,1726895445151,-151.0,0.00014,2]
[338713197,1726895445161,-151.0,0.00014,2]
[338713199,1726895445170,-848.932158,0.00014,2]
[338713201,1726895445180,-848.932158,0.00014,2]
[338713203,1726895445191,-151.0,0.00014,2]
[338713205,1726895445201,-151.0,0.00014,2]
[338713207,1726895445211,-1431.583724,0.00014,2]
[338713210,1726895445223,-402.681288,0.00014,2]
[338713212,1726895445233,-402.681288,0.00014,2]
[338713214,1726895445243,-151.0,0.00014,2]
[338713216,1726895445257,-151.0,0.00014,2]
[338713218,1726895445266,-346.203512,0.00014,2]
[338713220,1726895445275,-346.203512,0.00014,2]
[338713222,1726895445285,-325.988584,0.00014,2]
[338713224,1726895445296,-325.988584,0.00014,2]
[338713226,1726895445305,-151.0,0.00014,2]
[338713228,1726895445316,-151.0,0.00014,2]
[338713230,1726895445326,-151.0,0.00014,2]
[338713232,1726895445336,-151.0,0.00014,2]
[338713234,1726895445346,-152.592125,0.00014,2]
[338713236,1726895445355,-151.0,0.00014,2]
[338713238,1726895445364,-152.592125,0.00014,2]
[338713240,1726895445374,-151.0,0.00014,2]
[338713242,1726895445383,-323.882966,0.00014,2]
[338713244,1726895445393,-323.882966,0.00014,2]
[338713246,1726895445402,-597.609959,0.00014,2]
[338713248,1726895445412,-597.609959,0.00014,2]
[338713250,1726895445421,-305.11414,0.00014,2]
[338713252,1726895445431,-151.0,0.00014,2]
[338713254,1726895445441,-305.11414,0.00014,2]
[338713256,1726895445451,-151.0,0.00014,2]
[338713258,1726895445461,-1000.0,0.00014005,2]
[338713260,1726895445472,-1000.0,0.0001402,2]
[338713263,1726895445483,-769.6,0.00014032,2]
[338713266,1726895445494,-1000.0,0.00014035,2]
[338713268,1726895445504,-1000.0,0.0001405,2]
[338713270,1726895445514,-600.0,0.00014051,2]
[338713272,1726895445524,-334.595825,0.00014054,2]
[338713274,1726895445533,-334.595825,0.00014054,2]
[338713276,1726895445543,-600.0,0.00014054,2]
[338713278,1726895445553,-600.0,0.00014054,2]
[338713280,1726895445562,-600.0,0.00014054,2]
[338713282,1726895445572,-600.0,0.00014054,2]
[338713284,1726895445581,-150.0,0.00014059,2]
[338713286,1726895445590,-151.0,0.00014065,2]
[338713288,1726895445600,-301.942283,0.00014065,2]
[338713290,1726895445609,-151.0,0.00014065,2]
[338713292,1726895445619,-301.942283,0.00014065,2]
[338713294,1726895445634,-151.0,0.00014065,2]
[338713297,1726895445645,-777.352751,0.00014065,2]
[338713299,1726895445656,-151.0,0.00014065,2]
[338713301,1726895445666,-777.352751,0.00014065,2]
[338713303,1726895445676,-695.051238,0.00014065,2]
[338713305,1726895445686,-695.051238,0.00014065,2]
[338713307,1726895445696,-208.930769,0.00014065,2]
[338713309,1726895445706,-208.930769,0.00014065,2]
[338713311,1726895445717,-1000.0,0.00014065,2]
[338713312,1726895445727,-1000.0,0.00014081,2]
[338713313,1726895445738,-500.0,0.00014095,2]
[338713314,1726895445748,-1000.0,0.00014096,2]
[338713315,1726895445758,-6703.99000939,0.00014096,2]
[338713316,1726895445769,-151.0,0.00014111,2]
[338713317,1726895445779,-492.224936,0.00014111,2]
[338713318,1726895445789,-492.224936,0.00014111,2]
[338713319,1726895445799,-151.0,0.00014111,2]
[338713320,1726895445809,-151.0,0.00014111,2]
[338713321,1726895445820,-1107.07764,0.00014111,2]
[338713322,1726895445830,-1107.07764,0.00014111,2]
[338713323,1726895445840,-151.0,0.00014111,2]
[338713324,1726895445850,-352.331981,0.00014111,2]
[338713325,1726895445860,-190.210506,0.00014111,2]
[338713326,1726895445872,-190.210506,0.00014111,2]
[338713327,1726895445883,-322.519129,0.00014111,2]
[338713328,1726895445893,-322.519129,0.00014111,2]
[338713329,1726895445903,-310.041091,0.00014111,2]
[338713330,1726895445914,-310.041091,0.00014111,2]
[338713332,1726895445924,-151.0,0.00014111,2]
[338713334,1726895445934,-151.0,0.00014111,2]
[338713336,1726895445945,-245.391185,0.00014111,2]
[338713338,1726895445955,-245.391185,0.00014111,2]
[338713340,1726895445965,-344.161569,0.00014111,2]
[338713342,1726895445975,-242.992857,0.00014111,2]
[338713344,1726895445987,-242.992857,0.00014111,2]
[338713346,1726895445997,-151.0,0.00014111,2]
[338713348,1726895446016,-1365.857207,0.00014111,2]
[338713350,1726895446026,-1365.857207,0.00014111,2]
[338713352,1726895446036,-151.0,0.00014111,2]
[338713354,1726895446046,-238.664971,0.00014111,2]
[338713356,1726895446056,-534.49688,0.00014111,2]
[338713358,1726895446066,-238.664971,0.00014111,2]
[338713360,1726895446076,-534.49688,0.00014111,2]
[338713362,1726895446086,-155.680165,0.00014111,2]
[338713364,1726895446096,-151.0,0.00014111,2]
[338713366,1726895446106,-1000.0,0.00014111,2]
[338713368,1726895446116,-151.0,0.00014126,2]
[338713370,1726895446126,-395.504256,0.00014126,2]
[338713373,1726895446136,-395.504256,0.00014126,2]
[338713375,1726895446147,-642.112054,0.00014126,2]
[338713377,1726895446157,-411.478935,0.00014126,2]
[338713379,1726895446167,-411.478935,0.00014126,2]
[338713381,1726895446178,-642.112054,0.00014126,2]
[338713383,1726895446187,-1687.079736,0.00014126,2]
[338713385,1726895446197,-1687.079736,0.00014126,2]
[338713387,1726895446207,-1113.632378,0.00014126,2]
[338713389,1726895446217,-1113.632378,0.00014126,2]
[338713391,1726895446227,-1000.0,0.00014126,2]
[338713393,1726895446238,-1000.0,0.00014141,2]
[338713395,1726895446249,-1000.0,0.00014157,2]
[338713397,1726895446270,-253.227394,0.00014157,2]
[338713399,1726895446281,-253.227394,0.00014157,2]
[338713401,1726895446292,-1000.0,0.00014172,2]
[338713403,1726895446302,-1000.0,0.00014187,2]
[338713405,1726895446312,-1000.0,0.00014202,2]
[338713407,1726895446323,-781.15,0.00014208,7]
[338713409,1726895446334,-781.15,0.00014208,7]
[338713411,1726895446344,-151.0,0.00014208,2]
[338713413,1726895446354,-151.0,0.00014208,2]
[338713415,1726895446364,-1000.0,0.00014217,2]
[338713417,1726895446374,-151.0,0.00014229,2]
[338713419,1726895446384,-151.0,0.00014229,2]
[338713421,1726895446394,-500.0,0.00014229,30]
[338713423,1726895446405,-500.0,0.00014229,30]
[338713425,1726895446415,-500.0,0.00014229,30]
[338713427,1726895446425,-500.0,0.00014229,30]
[338713429,1726895446435,-500.0,0.00014229,30]
[338713431,1726895446445,-500.0,0.00014229,30]
[338713433,1726895446455,-500.0,0.00014229,30]
[338713435,1726895446465,-500.0,0.00014229,30]
[338713437,1726895446475,-500.0,0.00014229,30]
[338713439,1726895446486,-500.0,0.00014229,30]
[338713441,1726895446495,-500.0,0.00014229,30]
[338713443,1726895446510,-500.0,0.00014229,30]
[338713445,1726895446520,-500.0,0.00014229,30]
[338713447,1726895446530,-500.0,0.00014229,30]
[338713449,1726895446540,-500.0,0.00014229,30]
[338713451,1726895446551,-500.0,0.00014229,30]
[338713454,1726895446562,-500.0,0.00014229,30]
[338713456,1726895446572,-500.0,0.00014229,30]
[338713458,1726895446583,-500.0,0.00014229,30]
[338713460,1726895446593,-500.0,0.00014229,30]
[338713462,1726895446603,-500.0,0.00014229,30]
[338713464,1726895446613,-500.0,0.00014229,30]
[338713466,1726895446623,-500.0,0.00014229,30]
[338713468,1726895446633,-500.0,0.00014229,30]
[338713470,1726895446643,-500.0,0.00014229,30]
[338713472,1726895446653,-500.0,0.00014229,30]
[338713474,1726895446663,-500.0,0.00014229,30]
[338713476,1726895446673,-500.0,0.00014229,30]
[338713478,1726895446682,-500.0,0.00014229,30]
[338713480,1726895446692,-500.0,0.00014229,30]
[338713481,1726895446702,-500.0,0.00014229,30]
[338713483,1726895446712,-500.0,0.00014229,30]
[338713485,1726895446721,-500.0,0.00014229,30]
[338713487,1726895446732,-500.0,0.00014229,30]
[338713489,1726895446742,-500.0,0.00014229,30]
[338713491,1726895446753,-500.0,0.00014229,30]
[338713493,1726895446763,-500.0,0.00014229,30]
[338713495,1726895446773,-500.0,0.00014229,30]
[338713497,1726895446783,-500.0,0.00014229,30]
[338713499,1726895446792,-500.0,0.00014229,30]
[338713501,1726895446802,-615.66239311,0.00014229,30]
[338713503,1726895446811,-151.0,0.00014229,2]
[338713505,1726895446821,-151.0,0.00014229,2]
[338713507,1726895446831,-152.592125,0.00014229,2]
[338713509,1726895446841,-151.0,0.00014229,2]
[338713511,1726895446850,-152.592125,0.00014229,2]
[338713513,1726895446859,-270.476471,0.00014229,2]
[338713515,1726895446869,-323.882966,0.00014229,2]
[338713517,1726895446879,-323.882966,0.00014229,2]
[338713519,1726895446889,-305.11414,0.00014229,2]
[338713521,1726895446898,-151.0,0.00014229,2]
[338713523,1726895446908,-305.11414,0.00014229,2]
[338713525,1726895446918,-151.0,0.00014229,2]
[338713527,1726895446927,-1000.0,0.00014233,2]
[338713529,1726895446937,-1000.0,0.00014248,2]
[338713531,1726895446946,-600.0,0.0001425,2]
[338713533,1726895446955,-600.0,0.0001425,2]
[338713535,1726895446965,-600.0,0.0001425,2]
[338713537,1726895446974,-600.0,0.0001425,2]
[338713539,1726895446984,-600.0,0.0001425,2]
[338713541,1726895446994,-600.0,0.0001425,2]
[338713543,1726895447006,-600.0,0.0001425,2]
[338713545,1726895447017,-600.0,0.0001425,2]
[338713547,1726895447027,-600.0,0.0001425,2]
[338713549,1726895447036,-600.0,0.0001425,2]
[338713551,1726895447046,-600.0,0.0001425,2]
[338713553,1726895447055,-600.0,0.0001425,2]
[338713555,1726895447065,-600.0,0.0001425,2]
[338713557,1726895447075,-600.0,0.0001425,2]
[338713558,1726895447084,-600.0,0.0001425,2]
[338713560,1726895447095,-600.0,0.0001425,2]
[338713562,1726895447104,-600.0,0.0001425,2]
[338713564,1726895447114,-600.0,0.0001425,2]
[338713566,1726895447123,-600.0,0.0001425,2]
[338713568,1726895447133,-600.0,0.0001425,2]
[338713570,1726895447142,-600.0,0.0001425,2]
[338713572,1726895447152,-600.0,0.0001425,2]
[338713574,1726895447161,-600.0,0.0001425,2]
[338713576,1726895447170,-600.0,0.0001425,2]
[338713578,1726895447180,-600.0,0.0001425,2]
[338713580,1726895447190,-600.0,0.0001425,2]
[338713582,1726895447200,-600.0,0.0001425,2]
[338713584,1726895447209,-600.0,0.0001425,2]
[338713586,1726895447219,-600.0,0.0001425,2]
[338713588,1726895447228,-600.0,0.0001425,2]
[338713590,1726895447238,-600.0,0.0001425,2]
[338713592,1726895447250,-600.0,0.0001425,2]
[338713594,1726895447262,-600.0,0.0001425,2]
[338713596,1726895447271,-600.0,0.0001425,2]
[338713598,1726895447282,-600.0,0.0001425,2]
[338713601,1726895447294,-600.0,0.0001425,2]
[338713603,1726895447304,-600.0,0.0001425,2]
[338713604,1726895447314,-600.0,0.0001425,2]
[338713607,1726895447327,-600.0,0.0001425,2]
[338713609,1726895447337,-600.0,0.0001425,2]
[338713611,1726895447346,-600.0,0.0001425,2]
[338713613,1726895447356,-600.0,0.0001425,2]
[338713615,1726895447366,-600.0,0.0001425,2]
[338713617,1726895447375,-600.0,0.0001425,2]
[338713619,1726895447386,-600.0,0.0001425,2]
[338713621,1726895447395,-600.0,0.0001425,2]
[338713623,1726895447405,-600.0,0.0001425,2]
[338713625,1726895447415,-600.0,0.0001425,2]
[338713627,1726895447424,-600.0,0.0001425,2]
[338713629,1726895447434,-600.0,0.0001425,2]
[338713631,1726895447444,-600.0,0.0001425,2]
[338713633,1726895447455,-600.0,0.0001425,2]
[338713646,1726895447576,-600.0,0.0001425,2]
[338713648,1726895447586,-600.0,0.0001425,2]
[338713650,1726895447595,-600.0,0.0001425,2]
[338713652,1726895447605,-600.0,0.0001425,2]
[338713654,1726895447614,-930.39034396,0.0001425,2]
[338713656,1726895447624,-334.595825,0.0001425,2]
[338713658,1726895447634,-334.595825,0.0001425,2]
[338713660,1726895447644,-279.860398,0.0001425,2]
[338713662,1726895447653,-279.860398,0.0001425,2]
[338713664,1726895447664,-279.2896,0.0001425,2]
[338713666,1726895447673,-279.2896,0.0001425,2]
[338713668,1726895447683,-151.0,0.0001425,2]
[338713670,1726895447692,-151.0,0.0001425,2]
[338713672,1726895447702,-253.227394,0.0001425,2]
[338713674,1726895447711,-253.227394,0.0001425,2]
[338713676,1726895447720,-151.117754,0.0001425,2]
[338713677,1726895447729,-151.0,0.0001425,2]
[338713679,1726895447738,-151.0,0.0001425,2]
[338713681,1726895447747,-151.0,0.0001425,2]
[338713683,1726895447760,-151.0,0.0001425,2]
[338713685,1726895447769,-151.0,0.0001425,2]
[338713687,1726895447778,-848.932158,0.0001425,2]
[338713689,1726895447787,-848.932158,0.0001425,2]
[338713691,1726895447796,-492.224936,0.0001425,2]
[338713693,1726895447806,-197.379652,0.0001425,2]
[338713695,1726895447815,-492.224936,0.0001425,2]
[338713697,1726895447824,-151.0,0.0001425,2]
[338713699,1726895447833,-151.0,0.0001425,2]
[338713700,1726895447842,-151.0,0.0001425,2]
[338713702,1726895447851,-1107.07764,0.0001425,2]
[338713704,1726895447861,-1107.07764,0.0001425,2]
[338713706,1726895447870,-1431.583724,0.0001425,2]
[338713708,1726895447879,-151.0,0.0001425,2]
[338713710,1726895447889,-402.681288,0.0001425,2]
[338713712,1726895447898,-402.681288,0.0001425,2]
[338713714,1726895447908,-332.48219812,0.0001425,5]
[338713717,1726895447919,-352.331981,0.0001425,2]
[338713719,1726895447931,-395.504256,0.0001425,2]
[338713721,1726895447941,-395.504256,0.0001425,2]
[338713723,1726895447952,-190.210506,0.0001425,2]
[338713725,1726895447962,-190.210506,0.0001425,2]
[338713727,1726895447972,-322.519129,0.0001425,2]
[338713729,1726895447983,-322.519129,0.0001425,2]
[338713731,1726895447993,-310.041091,0.0001425,2]
[338713734,1726895448004,-310.041091,0.0001425,2]
[338713735,1726895448014,-151.0,0.0001425,2]
[338713737,1726895448023,-151.0,0.0001425,2]
[338713739,1726895448032,-245.391185,0.0001425,2]
[338713741,1726895448041,-245.391185,0.0001425,2]
[338713743,1726895448050,-151.0,0.0001425,2]
[338713745,1726895448060,-151.0,0.0001425,2]
[338713747,1726895448069,-344.161569,0.0001425,2]
[338713749,1726895448078,-344.161569,0.0001425,2]
[338713751,1726895448087,-242.992857,0.0001425,2]
[338713753,1726895448096,-242.992857,0.0001425,2]
[338713755,1726895448105,-346.203512,0.0001425,2]
[338713757,1726895448114,-346.203512,0.0001425,2]
[338713759,1726895448123,-325.988584,0.0001425,2]
[338713761,1726895448132,-325.988584,0.0001425,2]
[338713763,1726895448141,-151.0,0.0001425,2]
[338713765,1726895448150,-237.509233,0.0001425,2]
[338713767,1726895448159,-597.609959,0.0001425,2]
[338713769,1726895448168,-597.609959,0.0001425,2]
[338713771,1726895448177,-642.112054,0.0001425,2]
[338713773,1726895448186,-411.478935,0.0001425,2]
[338713775,1726895448195,-411.478935,0.0001425,2]
[338713777,1726895448204,-642.112054,0.0001425,2]
[338713779,1726895448213,-243.798423,0.0001425,2]
[338713781,1726895448222,-1687.079736,0.0001425,2]
[338713783,1726895448232,-1687.079736,0.0001425,2]
[338713785,1726895448241,-1365.857207,0.0001425,2]
[338713787,1726895448254,-1365.857207,0.0001425,2]
[338713789,1726895448263,-1113.632378,0.0001425,2]
[338713791,1726895448273,-1113.632378,0.0001425,2]
[338713793,1726895448282,-151.0,0.0001425,2]
[338713795,1726895448291,-151.0,0.0001425,2]
[338713797,1726895448301,-238.664971,0.0001425,2]
[338713799,1726895448310,-534.49688,0.0001425,2]
[338713801,1726895448319,-238.664971,0.0001425,2]
[338713803,1726895448330,-534.49688,0.0001425,2]
[338713805,1726895448339,-301.942283,0.0001425,2]
[338713807,1726895448348,-151.0,0.0001425,2]
[338713809,1726895448357,-301.942283,0.0001425,2]
[338713811,1726895448366,-151.0,0.0001425,2]
[338713813,1726895448375,-777.352751,0.0001425,2]
[338713815,1726895448384,-151.0,0.0001425,2]
[338713816,1726895448395,-777.352751,0.0001425,2]
[338713818,1726895448404,-695.051238,0.0001425,2]
[338713820,1726895448413,-695.051238,0.0001425,2]
[338713822,1726895448423,-208.930769,0.0001425,2]
[338713824,1726895448432,-208.930769,0.0001425,2]
[338713826,1726895448441,-151.0,0.0001425,2]
[338713828,1726895448450,-1000.0,0.00014263,2]
[338713830,1726895448460,-1000.0,0.00014278,2]
[338713832,1726895448469,-1000.0,0.00014293,2]
[338713834,1726895448478,-6703.99000939,0.00014295,2]
[338713836,1726895448488,-1000.0,0.00014308,2]
[338713838,1726895448498,-158.950062,0.00014316,3]
[338713840,1726895448507,-1000.0,0.00014324,2]
[338713842,1726895448516,-1000.0,0.00014339,2]
[338713844,1726895448525,-158.950062,0.00014345,2]
[338713846,1726895448535,-1000.0,0.00014354,2]
[338713848,1726895448544,-261.48196,0.00014369,2]
[338713850,1726895448553,-323.882966,0.00014369,2]
[338713852,1726895448564,-323.882966,0.00014369,2]
[338713854,1726895448573,-151.0,0.00014369,2]
[338713856,1726895448582,-500.0,0.00014369,2]
[338713858,1726895448591,-1000.0,0.00014369,2]
[338713860,1726895448600,-151.0,0.00014384,2]
[338713862,1726895448609,-152.592125,0.00014384,2]
[338713864,1726895448618,-151.0,0.00014384,2]
[338713866,1726895448627,-152.592125,0.00014384,2]
[338713868,1726895448636,-305.11414,0.00014384,2]
[338713870,1726895448645,-151.0,0.00014384,2]
[338713872,1726895448654,-305.11414,0.00014384,2]
[338713874,1726895448663,-1000.0,0.00014384,2]
[338713876,1726895448672,-1000.0,0.000144,2]
[338713878,1726895448681,-27860.1793507,0.000144,3]
[338713880,1726895448690,-151.0,0.000144,2]
[338713882,1726895448699,-151.0,0.000144,2]
[338713884,1726895448708,-334.595825,0.000144,2]
[338713886,1726895448717,-334.595825,0.000144,2]
[338713888,1726895448726,-279.860398,0.000144,2]
[338713890,1726895448735,-279.860398,0.000144,2]
[338713892,1726895448744,-279.2896,0.000144,2]
[338713894,1726895448753,-279.2896,0.000144,2]
[338713896,1726895448762,-151.0,0.000144,2]
[338713898,1726895448772,-151.0,0.000144,2]
[338713900,1726895448781,-253.227394,0.000144,2]
[338713902,1726895448790,-253.227394,0.000144,2]
[338713904,1726895448800,-151.0,0.000144,2]
[338713906,1726895448809,-151.0,0.000144,2]
[338713908,1726895448818,-151.330734,0.000144,2]
[338713910,1726895448827,-151.0,0.000144,2]
[338713912,1726895448837,-151.0,0.000144,2]
[338713914,1726895448846,-848.932158,0.000144,2]
[338713916,1726895448855,-848.932158,0.000144,2]
[338713918,1726895448864,-492.224936,0.000144,2]
[338713920,1726895448873,-492.224936,0.000144,2]
[338713922,1726895448882,-151.0,0.000144,2]
[338713924,1726895448891,-1431.583724,0.000144,2]
[338713926,1726895448901,-402.681288,0.000144,2]
[338713928,1726895448911,-402.681288,0.000144,2]
[338713930,1726895448919,-352.331981,0.000144,2]
[338713932,1726895448929,-352.331981,0.000144,2]
[338713934,1726895448938,-395.504256,0.000144,2]
[338713936,1726895448947,-395.504256,0.000144,2]
[338713938,1726895448957,-190.210506,0.000144,2]
[338713940,1726895448967,-190.210506,0.000144,2]
[338713942,1726895448976,-322.519129,0.000144,2]
[338713944,1726895448985,-322.519129,0.000144,2]
[338713946,1726895448994,-151.0,0.000144,2]
[338713948,1726895449005,-151.0,0.000144,2]
[338713950,1726895449014,-151.0,0.000144,2]
[338713951,1726895449023,-151.0,0.000144,2]
[338713954,1726895449033,-242.992857,0.000144,2]
[338713955,1726895449042,-242.992857,0.000144,2]
[338713957,1726895449051,-346.203512,0.000144,2]
[338713959,1726895449060,-346.203512,0.000144,2]
[338713961,1726895449069,-325.988584,0.000144,2]
[338713963,1726895449079,-325.988584,0.000144,2]
[338713965,1726895449088,-151.0,0.000144,2]
[338713967,1726895449097,-151.0,0.000144,2]
[338713969,1726895449106,-152.592125,0.000144,2]
[338713971,1726895449116,-151.0,0.000144,2]
[338713973,1726895449125,-152.592125,0.000144,2]
[338713975,1726895449135,-597.609959,0.000144,2]
[338713977,1726895449144,-597.609959,0.000144,2]
[338713978,1726895449153,-305.11414,0.000144,2]
[338713980,1726895449162,-151.0,0.000144,2]
[338713982,1726895449171,-305.11414,0.000144,2]
[338713984,1726895449181,-1365.857207,0.000144,2]
[338713986,1726895449190,-1365.857207,0.000144,2]
[338713988,1726895449199,-151.0,0.000144,2]
[338713990,1726895449208,-151.0,0.000144,2]
[338713992,1726895449218,-238.664971,0.000144,2]
[338713994,1726895449227,-534.49688,0.000144,2]
[338713996,1726895449237,-238.664971,0.000144,2]
[338713998,1726895449248,-534.49688,0.000144,2]
[338713999,1726895449260,-301.942283,0.000144,2]
[338714000,1726895449269,-151.0,0.000144,2]
[338714001,1726895449279,-301.942283,0.000144,2]
[338714002,1726895449290,-151.0,0.000144,2]
[338714003,1726895449300,-777.352751,0.000144,2]
[338714004,1726895449309,-151.0,0.000144,2]
[338714005,1726895449319,-777.352751,0.000144,2]
[338714006,1726895449329,-695.051238,0.000144,2]
[338714007,1726895449338,-695.051238,0.000144,2]